[Event "Titled Tuesday Blitz May 11 2021"]
[White "Dang, Hoang Son"]
[Black "Ozen, Bahadir"]
[WhiteFideId "12402435"]
[BlackFideId "6337058"]
[WhiteElo "2248"]
[BlackElo "2503"]
[Result "0-1"]
[Round "11"]
[TimeControl "180+1"]
[Date "2021.05.11"]
[WhiteClock "0:00:09"]
[BlackClock "0:00:14"]

1. d4 {[%clk 0:03:00]}  Nf6 {[%clk 0:02:59]} 2. c4 {[%clk 0:03:01]}  e6 {[%clk 0:02:59]} 3. Nf3 {[%clk 0:03:01]}  d5 {[%clk 0:02:59]} 4. g3 {[%clk 0:03:01]}  Bb4+ {[%clk 0:02:57]} 5. Bd2 {[%clk 0:03:00]}  Be7 {[%clk 0:02:58]} 6. Bg2 {[%clk 0:03:01]}  O-O {[%clk 0:02:58]} 7. O-O {[%clk 0:03:02]}  c6 {[%clk 0:02:57]} 8. Qc2 {[%clk 0:03:03]}  Nbd7 {[%clk 0:02:56]} 9. Nc3 {[%clk 0:02:59]}  b6 {[%clk 0:02:55]} 10. e4 {[%clk 0:02:59]}  dxe4 {[%clk 0:02:55]} 11. Nxe4 {[%clk 0:03:00]}  Nxe4 {[%clk 0:02:55]} 12. Qxe4 {[%clk 0:03:00]}  Bb7 {[%clk 0:02:56]} 13. Bc3 {[%clk 0:03:00]}  Nf6 {[%clk 0:02:52]} 14. Qe3 {[%clk 0:02:58]}  c5 {[%clk 0:02:47]} 15. Rfd1 {[%clk 0:02:58]}  Qc7 {[%clk 0:02:44]} 16. d5 {[%clk 0:02:52]}  exd5 {[%clk 0:02:44]} 17. cxd5 {[%clk 0:02:52]}  Nxd5 {[%clk 0:02:21]} 18. Rxd5 {[%clk 0:02:50]}  Bxd5 {[%clk 0:02:22]} 19. Nh4 {[%clk 0:02:27]}  Be6 {[%clk 0:01:40]} 20. Bxa8 {[%clk 0:02:22]}  Rxa8 {[%clk 0:01:41]} 21. Re1 {[%clk 0:02:19]}  Bf8 {[%clk 0:01:21]} 22. Nf3 {[%clk 0:02:15]}  Re8 {[%clk 0:01:19]} 23. Ng5 {[%clk 0:02:14]}  Bd7 {[%clk 0:01:19]} 24. Qd3 {[%clk 0:02:07]}  Rxe1+ {[%clk 0:01:19]} 25. Bxe1 {[%clk 0:02:08]}  g6 {[%clk 0:01:15]} 26. Bc3 {[%clk 0:02:07]}  Bf5 {[%clk 0:01:09]} 27. Qd5 {[%clk 0:01:57]}  h6 {[%clk 0:01:08]} 28. Nf3 {[%clk 0:01:43]}  Bg7 {[%clk 0:01:03]} 29. Bxg7 {[%clk 0:01:43]}  Kxg7 {[%clk 0:01:03]} 30. Kg2 {[%clk 0:01:32]}  Qd7 {[%clk 0:01:02]} 31. Qe5+ {[%clk 0:01:32]}  f6 {[%clk 0:01:02]} 32. Qf4 {[%clk 0:01:31]}  g5 {[%clk 0:01:01]} 33. Qe3 {[%clk 0:01:30]}  Bh3+ {[%clk 0:00:57]} 34. Kg1 {[%clk 0:01:29]}  Qd1+ {[%clk 0:00:57]} 35. Ne1 {[%clk 0:01:30]}  Kf7 {[%clk 0:00:56]} 36. f3 {[%clk 0:01:24]}  Be6 {[%clk 0:00:55]} 37. a3 {[%clk 0:01:18]}  a5 {[%clk 0:00:55]} 38. g4 {[%clk 0:01:15]}  a4 {[%clk 0:00:55]} 39. Kg2 {[%clk 0:01:15]}  Qd5 {[%clk 0:00:42]} 40. Nd3 {[%clk 0:01:08]}  Bxg4 {[%clk 0:00:41]} 41. Nf2 {[%clk 0:01:03]}  Bf5 {[%clk 0:00:41]} 42. Kg1 {[%clk 0:01:01]}  h5 {[%clk 0:00:40]} 43. Qe2 {[%clk 0:00:58]}  h4 {[%clk 0:00:28]} 44. Nd1 {[%clk 0:00:46]}  Qd4+ {[%clk 0:00:26]} 45. Ne3 {[%clk 0:00:43]}  Bd3 {[%clk 0:00:26]} 46. Qf2 {[%clk 0:00:43]}  Bb5 {[%clk 0:00:23]} 47. Kg2 {[%clk 0:00:41]}  Bd7 {[%clk 0:00:23]} 48. Qe2 {[%clk 0:00:39]}  h3+ {[%clk 0:00:23]} 49. Kf2 {[%clk 0:00:37]}  Be6 {[%clk 0:00:24]} 50. Ke1 {[%clk 0:00:31]}  f5 {[%clk 0:00:23]} 51. Nf1 {[%clk 0:00:27]}  Bc4 {[%clk 0:00:20]} 52. Qc2 {[%clk 0:00:23]}  Kf6 {[%clk 0:00:20]} 53. Ng3 {[%clk 0:00:07]}  Qe3+ {[%clk 0:00:19]} 54. Kd1 {[%clk 0:00:07]}  Qg1+ {[%clk 0:00:16]} 55. Kd2 {[%clk 0:00:07]}  Qxh2+ {[%clk 0:00:16]} 56. Kc3 {[%clk 0:00:07]}  Qxc2+ {[%clk 0:00:16]} 57. Kxc2 {[%clk 0:00:08]}  h2 {[%clk 0:00:16]} 58. Kd2 {[%clk 0:00:09]}  f4 {[%clk 0:00:14]} 0-1


[Site "https://www.chess.com"]

[Event "Titled Tuesday Blitz May 11 2021"]
[White "Debashis, Das"]
[Black "Costachi, Mihnea"]
[WhiteFideId "5024854"]
[BlackFideId "1217518"]
[WhiteElo "2470"]
[BlackElo "2479"]
[Result "1-0"]
[Round "11"]
[TimeControl "180+1"]
[Date "2021.05.11"]
[WhiteClock "0:00:09"]
[BlackClock "0:00:18"]

1. e4 {[%clk 0:03:00]}  e5 {[%clk 0:03:00]} 2. Nf3 {[%clk 0:03:01]}  Nc6 {[%clk 0:03:00]} 3. Bb5 {[%clk 0:03:01]}  a6 {[%clk 0:03:00]} 4. Ba4 {[%clk 0:03:02]}  d6 {[%clk 0:03:01]} 5. O-O {[%clk 0:02:57]}  Bd7 {[%clk 0:03:01]} 6. c3 {[%clk 0:02:56]}  g6 {[%clk 0:03:02]} 7. d4 {[%clk 0:02:56]}  Bg7 {[%clk 0:03:02]} 8. Be3 {[%clk 0:02:52]}  Nf6 {[%clk 0:03:02]} 9. Nbd2 {[%clk 0:02:51]}  O-O {[%clk 0:03:02]} 10. h3 {[%clk 0:02:50]}  Re8 {[%clk 0:03:00]} 11. Bc2 {[%clk 0:02:49]}  exd4 {[%clk 0:02:59]} 12. cxd4 {[%clk 0:02:48]}  Qe7 {[%clk 0:02:54]} 13. a3 {[%clk 0:02:47]}  Qf8 {[%clk 0:02:53]} 14. Re1 {[%clk 0:02:46]}  Nh5 {[%clk 0:02:52]} 15. Rc1 {[%clk 0:02:40]}  Bh6 {[%clk 0:02:52]} 16. Bb3 {[%clk 0:02:37]}  Bxe3 {[%clk 0:02:47]} 17. Rxe3 {[%clk 0:02:38]}  Rac8 {[%clk 0:02:34]} 18. Ba4 {[%clk 0:02:13]}  b5 {[%clk 0:02:24]} 19. Bb3 {[%clk 0:02:13]}  Nf4 {[%clk 0:02:24]} 20. Rec3 {[%clk 0:02:06]}  Na5 {[%clk 0:01:47]} 21. Rxc7 {[%clk 0:02:06]}  Nxb3 {[%clk 0:01:48]} 22. Nxb3 {[%clk 0:01:58]}  Rxe4 {[%clk 0:01:42]} 23. Rxd7 {[%clk 0:01:45]}  Ne2+ {[%clk 0:01:41]} 24. Kh2 {[%clk 0:01:21]}  Nxc1 {[%clk 0:01:39]} 25. Nxc1 {[%clk 0:01:22]}  Qe8 {[%clk 0:01:36]} 26. Ra7 {[%clk 0:01:06]}  Qc6 {[%clk 0:01:23]} 27. Nd3 {[%clk 0:00:44]}  Qb6 {[%clk 0:01:22]} 28. Rxf7 {[%clk 0:00:44]}  Kxf7 {[%clk 0:01:16]} 29. Ng5+ {[%clk 0:00:44]}  Kg7 {[%clk 0:01:17]} 30. Nxe4 {[%clk 0:00:45]}  Qxd4 {[%clk 0:01:17]} 31. f3 {[%clk 0:00:41]}  d5 {[%clk 0:01:07]} 32. Nef2 {[%clk 0:00:41]}  Qe3 {[%clk 0:01:00]} 33. Qb3 {[%clk 0:00:39]}  Rc4 {[%clk 0:00:56]} 34. Qd1 {[%clk 0:00:34]}  h5 {[%clk 0:00:53]} 35. Kg1 {[%clk 0:00:32]}  a5 {[%clk 0:00:49]} 36. Kf1 {[%clk 0:00:31]}  b4 {[%clk 0:00:48]} 37. axb4 {[%clk 0:00:31]}  axb4 {[%clk 0:00:49]} 38. Qe2 {[%clk 0:00:30]}  Qxe2+ {[%clk 0:00:41]} 39. Kxe2 {[%clk 0:00:30]}  Kf6 {[%clk 0:00:42]} 40. Kd2 {[%clk 0:00:26]}  b3 {[%clk 0:00:42]} 41. Ne1 {[%clk 0:00:25]}  Ke5 {[%clk 0:00:43]} 42. Nfd3+ {[%clk 0:00:23]}  Kd4 {[%clk 0:00:41]} 43. Nc1 {[%clk 0:00:23]}  Rb4 {[%clk 0:00:33]} 44. Ned3 {[%clk 0:00:23]}  Rb6 {[%clk 0:00:29]} 45. Ne2+ {[%clk 0:00:23]}  Kc4 {[%clk 0:00:29]} 46. Ne5+ {[%clk 0:00:22]}  Kb4 {[%clk 0:00:25]} 47. h4 {[%clk 0:00:17]}  Re6 {[%clk 0:00:22]} 48. Nd3+ {[%clk 0:00:16]}  Kc4 {[%clk 0:00:20]} 49. Nef4 {[%clk 0:00:14]}  Ra6 {[%clk 0:00:18]} 50. Nxg6 {[%clk 0:00:12]}  Kd4 {[%clk 0:00:17]} 51. Ngf4 {[%clk 0:00:12]}  Ra1 {[%clk 0:00:14]} 52. Nxh5 {[%clk 0:00:09]}  Rh1 {[%clk 0:00:12]} 53. Ng3 {[%clk 0:00:09]}  Rh2 {[%clk 0:00:10]} 54. Ne2+ {[%clk 0:00:09]}  Kc4 {[%clk 0:00:09]} 55. g4 {[%clk 0:00:06]}  Rxh4 {[%clk 0:00:09]} 56. g5 {[%clk 0:00:07]}  Rh2 {[%clk 0:00:07]} 57. g6 {[%clk 0:00:05]}  Rg2 {[%clk 0:00:07]} 58. Ne5+ {[%clk 0:00:05]}  Kc5 {[%clk 0:00:06]} 59. Ke3 {[%clk 0:00:05]}  Kd6 {[%clk 0:00:07]} 60. f4 {[%clk 0:00:05]}  Ke6 {[%clk 0:00:05]} 61. Nd4+ {[%clk 0:00:05]}  Kf6 {[%clk 0:00:05]} 62. Nxb3 {[%clk 0:00:05]}  Rxb2 {[%clk 0:00:05]} 63. Nd4 {[%clk 0:00:05]}  Ra2 {[%clk 0:00:06]} 64. Ndf3 {[%clk 0:00:04]}  Ra3+ {[%clk 0:00:06]} 65. Kf2 {[%clk 0:00:04]}  Ra7 {[%clk 0:00:05]} 66. Nh2 {[%clk 0:00:04]}  Kf5 {[%clk 0:00:05]} 67. Kg3 {[%clk 0:00:04]}  d4 {[%clk 0:00:05]} 68. Nhf3 {[%clk 0:00:04]}  d3 {[%clk 0:00:04]} 69. Nd4+ {[%clk 0:00:04]}  Ke4 {[%clk 0:00:04]} 70. Nxd3 {[%clk 0:00:03]}  Kxd4 {[%clk 0:00:03]} 71. Ne5 {[%clk 0:00:03]}  Ke4 {[%clk 0:00:02]} 72. Kg4 {[%clk 0:00:04]}  Ra1 {[%clk 0:00:02]} 73. Kg5 {[%clk 0:00:04]}  Rg1+ {[%clk 0:00:02]} 74. Ng4 {[%clk 0:00:04]}  Ra1 {[%clk 0:00:01]} 75. f5 {[%clk 0:00:03]}  Ra8 {[%clk 0:00:02]} 76. f6 {[%clk 0:00:03]}  Kd5 {[%clk 0:00:03]} 77. f7 {[%clk 0:00:02]}  Ke6 {[%clk 0:00:04]} 78. Nh6 {[%clk 0:00:03]}  Ra5+ {[%clk 0:00:04]} 79. Kf4 {[%clk 0:00:01]}  Ra4+ {[%clk 0:00:04]} 80. Ke3 {[%clk 0:00:01]}  Ra3+ {[%clk 0:00:04]} 81. Kd2 {[%clk 0:00:01]}  Ke7 {[%clk 0:00:05]} 82. g7 {[%clk 0:00:01]}  Ra2+ {[%clk 0:00:06]} 83. Kc3 {[%clk 0:00:01]}  Ra3+ {[%clk 0:00:07]} 84. Kb2 {[%clk 0:00:02]}  Rf3 {[%clk 0:00:08]} 85. g8=Q {[%clk 0:00:02]}  Rf2+ {[%clk 0:00:08]} 86. Kc3 {[%clk 0:00:03]}  Rf3+ {[%clk 0:00:09]} 87. Kd2 {[%clk 0:00:03]}  Rf2+ {[%clk 0:00:09]} 88. Ke3 {[%clk 0:00:03]}  Rf6 {[%clk 0:00:09]} 89. Qe8+ {[%clk 0:00:03]}  Kd6 {[%clk 0:00:09]} 90. f8=Q+ {[%clk 0:00:04]}  Rxf8 {[%clk 0:00:10]} 91. Qxf8+ {[%clk 0:00:04]}  Ke6 {[%clk 0:00:11]} 92. Qf7+ {[%clk 0:00:05]}  Ke5 {[%clk 0:00:11]} 93. Kf3 {[%clk 0:00:05]}  Kd4 {[%clk 0:00:12]} 94. Ng8 {[%clk 0:00:06]}  Ke5 {[%clk 0:00:13]} 95. Kg4 {[%clk 0:00:06]}  Kd4 {[%clk 0:00:14]} 96. Qe6 {[%clk 0:00:06]}  Kd3 {[%clk 0:00:14]} 97. Ne7 {[%clk 0:00:07]}  Kd2 {[%clk 0:00:15]} 98. Kf4 {[%clk 0:00:07]}  Kd1 {[%clk 0:00:15]} 99. Qe3 {[%clk 0:00:07]}  Kc2 {[%clk 0:00:15]} 100. Ke4 {[%clk 0:00:08]}  Kd1 {[%clk 0:00:16]} 101. Kd4 {[%clk 0:00:08]}  Kc2 {[%clk 0:00:17]} 102. Qd3+ {[%clk 0:00:08]}  Kb2 {[%clk 0:00:17]} 103. Qc3+ {[%clk 0:00:08]}  Ka2 {[%clk 0:00:17]} 104. Qb4 {[%clk 0:00:08]}  Ka1 {[%clk 0:00:17]} 105. Kc3 {[%clk 0:00:09]}  Ka2 {[%clk 0:00:18]} 106. Qb2# {[%clk 0:00:09]} 1-0


[Site "https://www.chess.com"]

[Event "Titled Tuesday Blitz May 11 2021"]
[White "Demin, Vladimir"]
[Black "Narayanan.S.L"]
[WhiteFideId "4167457"]
[BlackFideId "5058422"]
[WhiteElo "2552"]
[BlackElo "2617"]
[Result "0-1"]
[Round "11"]
[TimeControl "180+1"]
[Date "2021.05.11"]
[WhiteClock "0:00:11"]
[BlackClock "0:00:48"]

1. e4 {[%clk 0:03:00]}  Nc6 {[%clk 0:02:56]} 2. Nf3 {[%clk 0:03:00]}  e5 {[%clk 0:02:56]} 3. Bb5 {[%clk 0:03:00]}  a6 {[%clk 0:02:55]} 4. Bxc6 {[%clk 0:03:00]}  dxc6 {[%clk 0:02:55]} 5. O-O {[%clk 0:03:01]}  Bd6 {[%clk 0:02:48]} 6. d4 {[%clk 0:03:01]}  exd4 {[%clk 0:02:48]} 7. Qxd4 {[%clk 0:03:02]}  f6 {[%clk 0:02:48]} 8. Re1 {[%clk 0:03:02]}  Be6 {[%clk 0:02:44]} 9. Nc3 {[%clk 0:02:58]}  Ne7 {[%clk 0:02:41]} 10. e5 {[%clk 0:02:54]}  fxe5 {[%clk 0:02:35]} 11. Nxe5 {[%clk 0:02:54]}  O-O {[%clk 0:02:36]} 12. Bg5 {[%clk 0:02:46]}  Nf5 {[%clk 0:02:34]} 13. Qd2 {[%clk 0:02:40]}  Qe8 {[%clk 0:02:31]} 14. Nd3 {[%clk 0:02:34]}  Qf7 {[%clk 0:02:28]} 15. Bf4 {[%clk 0:02:31]}  Rad8 {[%clk 0:02:24]} 16. Bxd6 {[%clk 0:02:27]}  cxd6 {[%clk 0:02:25]} 17. Qf4 {[%clk 0:02:15]}  h6 {[%clk 0:02:21]} 18. Re2 {[%clk 0:02:06]}  Bc4 {[%clk 0:02:11]} 19. Rae1 {[%clk 0:02:04]}  Bxd3 {[%clk 0:02:10]} 20. cxd3 {[%clk 0:02:03]}  c5 {[%clk 0:02:11]} 21. Re6 {[%clk 0:01:46]}  Qd7 {[%clk 0:01:23]} 22. Qe4 {[%clk 0:01:20]}  d5 {[%clk 0:01:23]} 23. Qe5 {[%clk 0:01:19]}  b5 {[%clk 0:01:03]} 24. Ne2 {[%clk 0:01:11]}  Qf7 {[%clk 0:00:53]} 25. Nf4 {[%clk 0:01:01]}  Nd4 {[%clk 0:00:53]} 26. Re7 {[%clk 0:01:01]}  Qf6 {[%clk 0:00:48]} 27. Qxf6 {[%clk 0:00:44]}  Rxf6 {[%clk 0:00:49]} 28. Ne6 {[%clk 0:00:33]}  Nf5 {[%clk 0:00:43]} 29. Nxd8 {[%clk 0:00:25]}  Nxe7 {[%clk 0:00:44]} 30. Rxe7 {[%clk 0:00:25]}  c4 {[%clk 0:00:45]} 31. dxc4 {[%clk 0:00:22]}  dxc4 {[%clk 0:00:45]} 32. Ne6 {[%clk 0:00:22]}  b4 {[%clk 0:00:46]} 33. Nd4 {[%clk 0:00:18]}  Rd6 {[%clk 0:00:45]} 34. Nf3 {[%clk 0:00:19]}  c3 {[%clk 0:00:44]} 35. bxc3 {[%clk 0:00:16]}  bxc3 {[%clk 0:00:45]} 36. Ne1 {[%clk 0:00:16]}  Rd1 {[%clk 0:00:46]} 37. Kf1 {[%clk 0:00:10]}  c2 {[%clk 0:00:46]} 38. Re8+ {[%clk 0:00:09]}  Kf7 {[%clk 0:00:46]} 39. Rc8 {[%clk 0:00:10]}  c1=Q {[%clk 0:00:46]} 40. Rxc1 {[%clk 0:00:10]}  Rxc1 {[%clk 0:00:47]} 41. Ke2 {[%clk 0:00:11]}  Ra1 {[%clk 0:00:48]} 0-1


[Site "https://www.chess.com"]

[Event "Titled Tuesday Blitz May 11 2021"]
[White "Fernandez, Daniel Howard"]
[Black "Triapishko, Alexandr"]
[WhiteFideId "5801605"]
[BlackFideId "14122286"]
[WhiteElo "2468"]
[BlackElo "2490"]
[Result "0-1"]
[Round "11"]
[TimeControl "180+1"]
[Date "2021.05.11"]
[WhiteClock "0:02:17"]
[BlackClock "0:01:01"]

1. c4 {[%clk 0:03:00]}  c5 {[%clk 0:02:51]} 2. Nc3 {[%clk 0:02:59]}  Nc6 {[%clk 0:02:51]} 3. Nf3 {[%clk 0:02:59]}  g6 {[%clk 0:02:52]} 4. e3 {[%clk 0:02:56]}  Nf6 {[%clk 0:02:52]} 5. d4 {[%clk 0:02:55]}  cxd4 {[%clk 0:02:53]} 6. exd4 {[%clk 0:02:55]}  d5 {[%clk 0:02:53]} 7. cxd5 {[%clk 0:02:51]}  Nxd5 {[%clk 0:02:54]} 8. Qb3 {[%clk 0:02:51]}  Nxc3 {[%clk 0:02:54]} 9. bxc3 {[%clk 0:02:51]}  Bg7 {[%clk 0:02:54]} 10. Be2 {[%clk 0:02:44]}  O-O {[%clk 0:02:54]} 11. O-O {[%clk 0:02:45]}  b6 {[%clk 0:02:48]} 12. Ba3 {[%clk 0:02:44]}  Bb7 {[%clk 0:02:41]} 13. Rfe1 {[%clk 0:02:44]}  Rc8 {[%clk 0:02:24]} 14. Bb5 {[%clk 0:02:44]}  Rc7 {[%clk 0:02:16]} 15. Rad1 {[%clk 0:02:38]}  Na5 {[%clk 0:02:13]} 16. Qa4 {[%clk 0:02:38]}  Bxf3 {[%clk 0:02:08]} 17. gxf3 {[%clk 0:02:39]}  Bf6 {[%clk 0:02:08]} 18. d5 {[%clk 0:02:37]}  Nb7 {[%clk 0:02:08]} 19. Qxa7 {[%clk 0:02:22]}  Bxc3 {[%clk 0:01:27]} 20. Re2 {[%clk 0:02:18]}  Ba5 {[%clk 0:01:22]} 21. Qa6 {[%clk 0:02:17]}  Nc5 {[%clk 0:01:13]} 22. Bxc5 {[%clk 0:02:17]}  Rxc5 {[%clk 0:01:14]} 23. Bc6 {[%clk 0:02:17]}  Rxc6 {[%clk 0:01:01]} 0-1


[Site "https://www.chess.com"]

[Event "Titled Tuesday Blitz May 11 2021"]
[White "Gabrielian, Artur"]
[Black "Weetik, Vjacheslav"]
[WhiteFideId "4131002"]
[BlackFideId "4153472"]
[WhiteElo "2539"]
[BlackElo "2469"]
[Result "0-1"]
[Round "11"]
[TimeControl "180+1"]
[Date "2021.05.11"]
[WhiteClock "0:00:11"]
[BlackClock "0:00:07"]

1. d4 {[%clk 0:03:00]}  Nf6 {[%clk 0:02:59]} 2. c4 {[%clk 0:03:00]}  g6 {[%clk 0:03:00]} 3. Nc3 {[%clk 0:03:01]}  Bg7 {[%clk 0:03:00]} 4. Nf3 {[%clk 0:02:59]}  O-O {[%clk 0:02:58]} 5. g3 {[%clk 0:02:59]}  d6 {[%clk 0:02:58]} 6. Bg2 {[%clk 0:02:59]}  Nc6 {[%clk 0:02:59]} 7. O-O {[%clk 0:02:59]}  a6 {[%clk 0:02:59]} 8. Bf4 {[%clk 0:02:58]}  Rb8 {[%clk 0:02:57]} 9. Rc1 {[%clk 0:02:57]}  e6 {[%clk 0:02:50]} 10. Qd2 {[%clk 0:02:55]}  Ne7 {[%clk 0:02:48]} 11. e4 {[%clk 0:02:51]}  Nd7 {[%clk 0:02:48]} 12. Bh6 {[%clk 0:02:51]}  b5 {[%clk 0:02:48]} 13. Bxg7 {[%clk 0:02:45]}  Kxg7 {[%clk 0:02:48]} 14. cxb5 {[%clk 0:02:45]}  axb5 {[%clk 0:02:48]} 15. e5 {[%clk 0:02:45]}  Bb7 {[%clk 0:02:44]} 16. exd6 {[%clk 0:02:36]}  cxd6 {[%clk 0:02:43]} 17. Rfe1 {[%clk 0:02:28]}  Nf6 {[%clk 0:02:38]} 18. a3 {[%clk 0:02:22]}  b4 {[%clk 0:02:11]} 19. axb4 {[%clk 0:02:20]}  Bxf3 {[%clk 0:02:10]} 20. Bxf3 {[%clk 0:02:20]}  Rxb4 {[%clk 0:02:06]} 21. Ne4 {[%clk 0:02:12]}  Nfd5 {[%clk 0:02:04]} 22. Nc3 {[%clk 0:01:39]}  Nf6 {[%clk 0:02:03]} 23. Ne4 {[%clk 0:01:21]}  Qb6 {[%clk 0:01:05]} 24. Nxf6 {[%clk 0:01:21]}  Kxf6 {[%clk 0:01:06]} 25. Qh6 {[%clk 0:01:12]}  Re8 {[%clk 0:00:32]} 26. g4 {[%clk 0:01:01]}  Ng8 {[%clk 0:00:22]} 27. Qxh7 {[%clk 0:00:39]}  Rxd4 {[%clk 0:00:20]} 28. Rc6 {[%clk 0:00:34]}  Qb4 {[%clk 0:00:17]} 29. Re3 {[%clk 0:00:27]}  Rxg4+ {[%clk 0:00:15]} 30. Bxg4 {[%clk 0:00:27]}  Qxg4+ {[%clk 0:00:16]} 31. Kf1 {[%clk 0:00:25]}  Qd1+ {[%clk 0:00:14]} 32. Re1 {[%clk 0:00:25]}  Qd5 {[%clk 0:00:14]} 33. Qh4+ {[%clk 0:00:23]}  Kg7 {[%clk 0:00:13]} 34. Qe4 {[%clk 0:00:22]}  Qb5+ {[%clk 0:00:12]} 35. Qc4 {[%clk 0:00:22]}  Qxb2 {[%clk 0:00:12]} 36. Rxd6 {[%clk 0:00:19]}  Nf6 {[%clk 0:00:12]} 37. Qd4 {[%clk 0:00:19]}  Qb5+ {[%clk 0:00:12]} 38. Kg2 {[%clk 0:00:19]}  Qg5+ {[%clk 0:00:11]} 39. Kh1 {[%clk 0:00:19]}  Rh8 {[%clk 0:00:11]} 40. Re3 {[%clk 0:00:18]}  Qf5 {[%clk 0:00:10]} 41. Kg2 {[%clk 0:00:16]}  Rh5 {[%clk 0:00:10]} 42. Rg3 {[%clk 0:00:16]}  e5 {[%clk 0:00:08]} 43. Qd3 {[%clk 0:00:16]}  Ne4 {[%clk 0:00:07]} 44. Rf3 {[%clk 0:00:15]}  Qg4+ {[%clk 0:00:06]} 45. Kf1 {[%clk 0:00:16]}  Nxd6 {[%clk 0:00:07]} 46. h3 {[%clk 0:00:14]}  Qe6 {[%clk 0:00:06]} 47. Kg2 {[%clk 0:00:11]}  e4 {[%clk 0:00:06]} 48. Qd4+ {[%clk 0:00:11]}  Qe5 {[%clk 0:00:07]} 0-1


[Site "https://www.chess.com"]

[Event "Titled Tuesday Blitz May 11 2021"]
[White "Gokerkan, Cem Kaan"]
[Black "Praggnanandhaa R"]
[WhiteFideId "6336760"]
[BlackFideId "25059530"]
[WhiteElo "2361"]
[BlackElo "2555"]
[Result "1/2-1/2"]
[Round "11"]
[TimeControl "180+1"]
[Date "2021.05.11"]
[WhiteClock "0:00:10"]
[BlackClock "0:00:09"]

1. e4 {[%clk 0:03:00]}  c5 {[%clk 0:02:58]} 2. c3 {[%clk 0:03:00]}  Nf6 {[%clk 0:02:57]} 3. e5 {[%clk 0:03:00]}  Nd5 {[%clk 0:02:57]} 4. d4 {[%clk 0:03:01]}  cxd4 {[%clk 0:02:57]} 5. Qxd4 {[%clk 0:03:01]}  e6 {[%clk 0:02:57]} 6. Nf3 {[%clk 0:03:01]}  Nc6 {[%clk 0:02:57]} 7. Qe4 {[%clk 0:03:02]}  f5 {[%clk 0:02:57]} 8. Qe2 {[%clk 0:03:03]}  b5 {[%clk 0:02:57]} 9. g3 {[%clk 0:03:03]}  a5 {[%clk 0:02:53]} 10. Bg2 {[%clk 0:03:03]}  Ba6 {[%clk 0:02:53]} 11. O-O {[%clk 0:03:04]}  Bc5 {[%clk 0:02:54]} 12. Bg5 {[%clk 0:03:02]}  Qb6 {[%clk 0:02:53]} 13. Nbd2 {[%clk 0:03:02]}  h6 {[%clk 0:02:50]} 14. Bf4 {[%clk 0:02:43]}  g5 {[%clk 0:02:50]} 15. Be3 {[%clk 0:02:44]}  Bxe3 {[%clk 0:02:35]} 16. fxe3 {[%clk 0:02:45]}  Qxe3+ {[%clk 0:02:30]} 17. Qf2 {[%clk 0:02:45]}  O-O {[%clk 0:02:10]} 18. Rfe1 {[%clk 0:02:43]}  Qxf2+ {[%clk 0:02:09]} 19. Kxf2 {[%clk 0:02:44]}  Rac8 {[%clk 0:02:07]} 20. Rac1 {[%clk 0:02:42]}  f4 {[%clk 0:02:01]} 21. g4 {[%clk 0:02:36]}  Ne3 {[%clk 0:02:01]} 22. h3 {[%clk 0:02:36]}  Ne7 {[%clk 0:01:54]} 23. Ne4 {[%clk 0:02:35]}  N7d5 {[%clk 0:01:53]} 24. Nd4 {[%clk 0:02:17]}  Nc4 {[%clk 0:01:48]} 25. Nd6 {[%clk 0:02:14]}  Nxd6 {[%clk 0:01:32]} 26. exd6 {[%clk 0:02:14]}  Ne3 {[%clk 0:01:32]} 27. Bf1 {[%clk 0:01:39]}  Rc5 {[%clk 0:01:23]} 28. b4 {[%clk 0:01:24]}  axb4 {[%clk 0:01:19]} 29. cxb4 {[%clk 0:01:25]}  Rd5 {[%clk 0:01:20]} 30. Nb3 {[%clk 0:01:20]}  Rxd6 {[%clk 0:01:19]} 31. Nc5 {[%clk 0:01:20]}  Ra8 {[%clk 0:01:17]} 32. a4 {[%clk 0:01:20]}  bxa4 {[%clk 0:01:11]} 33. Bxa6 {[%clk 0:01:19]}  Raxa6 {[%clk 0:01:08]} 34. Nxa6 {[%clk 0:01:19]}  Rxa6 {[%clk 0:01:09]} 35. Rc7 {[%clk 0:01:15]}  a3 {[%clk 0:00:41]} 36. b5 {[%clk 0:01:15]}  Rb6 {[%clk 0:00:37]} 37. Ra1 {[%clk 0:01:10]}  Kf7 {[%clk 0:00:31]} 38. Rxd7+ {[%clk 0:01:08]}  Kf6 {[%clk 0:00:31]} 39. Rxa3 {[%clk 0:01:04]}  Rxb5 {[%clk 0:00:31]} 40. Raa7 {[%clk 0:01:03]}  Ke5 {[%clk 0:00:29]} 41. Rdb7 {[%clk 0:01:01]}  Rd5 {[%clk 0:00:25]} 42. Rd7 {[%clk 0:01:01]}  Ke4 {[%clk 0:00:17]} 43. Rxd5 {[%clk 0:01:00]}  Nxd5 {[%clk 0:00:18]} 44. Rh7 {[%clk 0:00:56]}  e5 {[%clk 0:00:18]} 45. Rxh6 {[%clk 0:00:56]}  Kd4 {[%clk 0:00:14]} 46. h4 {[%clk 0:00:56]}  gxh4 {[%clk 0:00:14]} 47. Rxh4 {[%clk 0:00:57]}  e4 {[%clk 0:00:14]} 48. g5 {[%clk 0:00:57]}  Ke5 {[%clk 0:00:07]} 49. g6 {[%clk 0:00:32]}  Kf6 {[%clk 0:00:05]} 50. Rg4 {[%clk 0:00:23]}  Kg7 {[%clk 0:00:02]} 51. Rg5 {[%clk 0:00:19]}  Nc3 {[%clk 0:00:02]} 52. Rc5 {[%clk 0:00:15]}  e3+ {[%clk 0:00:01]} 53. Kf3 {[%clk 0:00:15]}  e2 {[%clk 0:00:02]} 54. Re5 {[%clk 0:00:13]}  Kxg6 {[%clk 0:00:02]} 55. Kxf4 {[%clk 0:00:11]}  Kf6 {[%clk 0:00:03]} 56. Re8 {[%clk 0:00:10]}  Kf7 {[%clk 0:00:03]} 57. Re5 {[%clk 0:00:09]}  Kf6 {[%clk 0:00:04]} 58. Re8 {[%clk 0:00:08]}  Kf7 {[%clk 0:00:03]} 59. Re5 {[%clk 0:00:08]}  Kg6 {[%clk 0:00:04]} 60. Kf3 {[%clk 0:00:08]}  Kf6 {[%clk 0:00:04]} 61. Re8 {[%clk 0:00:08]}  Kf5 {[%clk 0:00:03]} 62. Kf2 {[%clk 0:00:07]}  Kf4 {[%clk 0:00:03]} 63. Rc8 {[%clk 0:00:06]}  Ne4+ {[%clk 0:00:02]} 64. Kxe2 {[%clk 0:00:06]}  Nf6 {[%clk 0:00:03]} 65. Rf8 {[%clk 0:00:06]}  Ke5 {[%clk 0:00:03]} 66. Ra8 {[%clk 0:00:07]}  Nd5 {[%clk 0:00:03]} 67. Kd3 {[%clk 0:00:07]}  Ne7 {[%clk 0:00:03]} 68. Ra5+ {[%clk 0:00:07]}  Kd6 {[%clk 0:00:03]} 69. Ke4 {[%clk 0:00:07]}  Nc6 {[%clk 0:00:04]} 70. Ra1 {[%clk 0:00:07]}  Kc5 {[%clk 0:00:05]} 71. Rc1+ {[%clk 0:00:08]}  Kd6 {[%clk 0:00:05]} 72. Rh1 {[%clk 0:00:08]}  Kc5 {[%clk 0:00:06]} 73. Rh6 {[%clk 0:00:08]}  Ne7 {[%clk 0:00:05]} 74. Rh5+ {[%clk 0:00:08]}  Kd6 {[%clk 0:00:05]} 75. Rh6+ {[%clk 0:00:08]}  Kc5 {[%clk 0:00:05]} 76. Re6 {[%clk 0:00:08]}  Nc6 {[%clk 0:00:05]} 77. Rf6 {[%clk 0:00:08]}  Nd8 {[%clk 0:00:05]} 78. Rf1 {[%clk 0:00:09]}  Nc6 {[%clk 0:00:05]} 79. Rd1 {[%clk 0:00:10]}  Nb4 {[%clk 0:00:05]} 80. Rc1+ {[%clk 0:00:10]}  Kd6 {[%clk 0:00:05]} 81. Kd4 {[%clk 0:00:11]}  Nc6+ {[%clk 0:00:05]} 82. Ke4 {[%clk 0:00:11]}  Ne7 {[%clk 0:00:05]} 83. Rd1+ {[%clk 0:00:11]}  Kc5 {[%clk 0:00:06]} 84. Rd7 {[%clk 0:00:11]}  Nc6 {[%clk 0:00:06]} 85. Rd5+ {[%clk 0:00:11]}  Kc4 {[%clk 0:00:06]} 86. Rh5 {[%clk 0:00:12]}  Nb4 {[%clk 0:00:06]} 87. Rh4 {[%clk 0:00:12]}  Kc5 {[%clk 0:00:07]} 88. Rh5+ {[%clk 0:00:12]}  Kc4 {[%clk 0:00:07]} 89. Rh1 {[%clk 0:00:13]}  Kc5 {[%clk 0:00:07]} 90. Rb1 {[%clk 0:00:13]}  Nc6 {[%clk 0:00:07]} 91. Rc1+ {[%clk 0:00:13]}  Kd6 {[%clk 0:00:07]} 92. Ra1 {[%clk 0:00:13]}  Kc5 {[%clk 0:00:08]} 93. Rb1 {[%clk 0:00:13]}  Kd6 {[%clk 0:00:09]} 94. Rb5 {[%clk 0:00:13]}  Ne7 {[%clk 0:00:09]} 95. Ra5 {[%clk 0:00:13]}  Nc6 {[%clk 0:00:09]} 96. Rd5+ {[%clk 0:00:13]}  Ke6 {[%clk 0:00:09]} 97. Rh5 {[%clk 0:00:14]}  Kd6 {[%clk 0:00:09]} 98. Rh6+ {[%clk 0:00:13]}  Kc5 {[%clk 0:00:10]} 99. Kd3 {[%clk 0:00:11]}  Kd5 {[%clk 0:00:10]} 100. Rh5+ {[%clk 0:00:11]}  Kd6 {[%clk 0:00:10]} 101. Kc4 {[%clk 0:00:10]}  Ne5+ {[%clk 0:00:10]} 102. Kd4 {[%clk 0:00:10]}  Nc6+ {[%clk 0:00:10]} 103. Ke4 {[%clk 0:00:11]}  Ne7 {[%clk 0:00:09]} 104. Rh6+ {[%clk 0:00:10]}  Kc5 {[%clk 0:00:09]} 1/2-1/2


[Site "https://www.chess.com"]